[Event "RUS-ch Rapid Women 2021"]
[White "Balaian,Alina"]
[Black "Kovalevskaya,Ekaterina"]
[Site "Sochi"]
[Round "11.2"]
[Annotator "RC"]
[Result "0-1"]
[Date "2021.10.13"]
[WhiteElo "2242"]
[BlackElo "2364"]
[PlyCount "120"]
[TimeControl "5400+30"]

1. e4 {[%emt 1:15:40]} c5 {[%emt 1:15:42]} 2. Nf3 {[%emt 0:0:26]} Nc6 {[%emt 0:0:22]
} 3. d4 {[%emt 0:0:22]} cxd4 {[%emt 0:0:23]} 4. Nxd4 {[%emt 0:0:0]} e5 {[%emt 0:0:22]} 5. Nb5 {[%emt 0:0:23]} d6 {[%emt 0:0:22]} 6. c4 {[%emt 0:0:21]
} Be7 {[%emt 0:0:24]} 7. N1c3 {[%emt 0:0:42]} a6 {[%emt 0:0:0]} 8. Na3 {[%emt 0:0:22]} Be6 {[%emt 0:0:25]} 9. Be3 {[%emt 0:0:29]} Bg5 {[%emt 0:0:30]
} 10. Nc2 {[%emt 0:0:49]} Bxe3 {[%emt 0:0:37]} 11. Nxe3 {[%emt 0:0:21]
} Nf6 {[%emt 0:0:26]} 12. Be2 {[%emt 0:0:47]} 0-0 {[%emt 0:0:0]} 13. 0-0 {[%emt 0:0:21]} Rc8 {[%emt 0:0:25]} 14. Rc1 {[%emt 0:0:36]} Nd4 {[%emt 0:0:55]} 15. b3 {[%emt 0:0:23]} b5 {[%emt 0:1:37]} 16. Bd3 {[%emt 0:0:0]} Qa5 {[%emt 0:3:4]} 17. Qd2 {[%emt 0:3:53]} Nh5 {[%emt 0:2:19]} 18. Rfd1 {[%emt 0:1:9]} Nf4 {[%emt 0:0:37]} 19. Bf1 {[%emt 0:2:19]} bxc4 {[%emt 0:0:50]
} 20. Nxc4 {[%emt 0:1:3]} Qd8 {[%emt 0:4:3]} 21. Qe3 {[%emt 0:1:15]
} Bxc4 {[%emt 0:2:8]} 22. Bxc4 {[%emt 0:1:15]} Rxc4 {[%emt 0:0:0]} 23. bxc4 {[%emt 0:0:24]} Qg5 {[%emt 0:0:21]} 24. g3 {[%emt 0:0:44]} Nfe2+ {[%emt 0:0:34]} 25. Kf1 {[%emt 0:1:14]} Qxe3 {[%emt 0:2:34]} 26. fxe3 {[%emt 0:0:22]} Nxc1 {[%emt 0:0:22]} 27. exd4 {[%emt 0:0:25]} exd4 {[%emt 0:0:0]} 28. Rxd4 {[%emt 0:0:50]} f5 {[%emt 0:0:20]} 29. e5 {[%emt 0:1:34]} dxe5 {[%emt 0:0:24]} 30. Rd1 {[%emt 0:0:22]} Rc8 {[%emt 0:1:13]} 31. Rxc1 {[%emt 0:0:23]
} Rxc4 {[%emt 0:0:21]} 32. Ne2 {[%emt 0:0:30]} Ra4 {[%emt 0:0:0]} 33. Rc8+ {[%emt 0:1:17]} Kf7 {[%emt 0:0:22]} 34. Nc3 {[%emt 0:0:26]} Ra5 {[%emt 0:1:12]} 35. Ke2 {[%emt 0:0:32]} g5 {[%emt 0:0:34]} 36. Kd3 {[%emt 0:0:40]
} h5 {[%emt 0:0:33]} 37. Rc7+ {[%emt 0:1:22]} Kg6 {[%emt 0:0:0]} 38. Rc6+ {[%emt 0:0:27]} Kg7 {[%emt 0:0:26]} 39. Kc4 {[%emt 0:1:34]} f4 {[%emt 0:0:24]} 40. Kd3 {[%emt 0:0:46]} fxg3 {[%emt 0:0:27]} 41. hxg3 {[%emt 0:0:22]
} h4 {[%emt 0:0:21]} 42. gxh4 {[%emt 0:0:49]} gxh4 {[%emt 0:0:0]} 43. Rc4 {[%emt 0:0:46]} e4+ {[%emt 0:0:31]} 44. Rxe4 {[%emt 0:0:28]} Rh5 {[%emt 0:0:22]} 45. Re2 {[%emt 0:0:26]} Kg6 {[%emt 0:1:7]} 46. Ke4 {[%emt 0:0:37]
} h3 {[%emt 0:0:34]} 47. Rh2 {[%emt 0:0:22]} Kg5 {[%emt 0:0:0]} 48. Kf3 {[%emt 0:0:32]} Kh4 {[%emt 0:0:21]} 49. Ne4 {[%emt 0:0:48]} Rf5+ {[%emt 0:0:26]} 50. Ke3 {[%emt 0:0:21]} Ra5 {[%emt 0:0:42]} 51. Kf4 {[%emt 0:0:38]
} Ra4 {[%emt 0:0:32]} 52. Rd2 {[%emt 0:0:27]} Ra5 {[%emt 0:0:0]} 53. Rc2 {[%emt 0:0:34]} Rb5 {[%emt 0:0:28]} 54. Rc8 {[%emt 0:0:33]} h2 {[%emt 0:0:35]} 55. Rh8+ {[%emt 0:0:23]} Rh5 {[%emt 0:0:21]} 56. Rxh5+ {[%emt 0:0:22]
} Kxh5 {[%emt 0:0:20]} 57. Nf2 {[%emt 0:0:36]} Kg6 {[%emt 0:0:0]} 58. Kg3 {[%emt 0:0:22]} Kf5 {[%emt 0:0:20]} 59. Kxh2 {[%emt 0:0:24]} Ke5 {[%emt 0:0:23]} 60. Nd3+ {[%emt 0:0:43]} Kd4 {[%emt 0:0:52]} 0-1

[Event "RUS-ch Rapid Women 2021"]
[White "Goltseva,Ekaterina"]
[Black "Tomilova,Elena"]
[Site "Sochi"]
[Round "11.3"]
[Annotator "NA RC"]
[Result "1/2-1/2"]
[Date "2021.10.13"]
[WhiteElo "2304"]
[BlackElo "2256"]
[PlyCount "133"]
[TimeControl "5400+30"]

1. d4 {[%emt 1:15:41]} Nf6 {[%emt 1:15:41]} 2. c4 {[%emt 0:0:22]} e6 {[%emt 0:0:0]} 3. Nc3 {[%emt 0:0:53]} Bb4 {[%emt 0:0:23]} 4. g3 {[%emt 0:0:22]} 0-0 {[%emt 0:0:56]} 5. Bg2 {[%emt 0:0:39]} d6 {[%emt 0:0:53]} 6. Nf3 {[%emt 0:0:0]} Nbd7 {[%emt 0:0:50]} 7. Qc2 {[%emt 0:1:33]} e5 {[%emt 0:0:43]} 8. d5 {[%emt 0:1:47]} a5 {[%emt 0:0:47]} 9. 0-0 {[%emt 0:0:48]} Nc5 {[%emt 0:0:0]} 10. Na4 {[%emt 0:4:51]} Nxa4 {[%emt 0:0:37]} 11. Qxa4 {[%emt 0:0:22]} Bc5 {[%emt 0:1:4]} 12. Qc2 {[%emt 0:1:30]} a4 {[%emt 0:1:3]} 13. Bd2 {[%emt 0:0:32]
} Qe7 {[%emt 0:1:17]} 14. Bc3 {[%emt 0:0:51]} Bg4 {[%emt 0:0:0]} 15. b4 {[%emt 0:1:16]} axb3 {[%emt 0:0:58]} 16. axb3 {[%emt 0:0:22]} Rxa1 {[%emt 0:1:47]} 17. Rxa1 {[%emt 0:0:43]} Bxf3 {[%emt 0:0:31]} 18. exf3 {[%emt 0:1:30]} b5 {[%emt 0:0:34]} 19. Re1 {[%emt 0:0:46]} bxc4 {[%emt 0:0:0]} 20. bxc4 {[%emt 0:0:22]} Qd8 {[%emt 0:0:42]} 21. Bh3 {[%emt 0:0:38]} Re8 {[%emt 0:2:34]} 22. Qd2 {[%emt 0:1:0]} Nd7 {[%emt 0:0:49]} 23. Bf5 {[%emt 0:1:13]
} Nb6 {[%emt 0:0:45]} 24. Bd3 {[%emt 0:0:28]} g6 {[%emt 0:0:0]} 25. f4 {[%emt 0:0:43]} exf4 {[%emt 0:0:34]} 26. Rxe8+ {[%emt 0:0:37]} Qxe8 {[%emt 0:0:21]} 27. Qxf4 {[%emt 0:0:22]} Nd7 {[%emt 0:1:12]} 28. h4 {[%emt 0:0:52]
} Ne5 {[%emt 0:1:32]} 29. Bf1 {[%emt 0:0:42]} f5 {[%emt 0:0:0]} 30. Be2 {[%emt 0:1:8]} h5 {[%emt 0:0:53]} 31. Kf1 {[%emt 0:0:38]} Nf7 {[%emt 0:0:46]} 32. Bd3 {[%emt 0:0:51]} Qb8 {[%emt 0:0:29]} 33. Qd2 {[%emt 0:0:54]
} Qb6 {[%emt 0:0:30]} 34. Qb2 {[%emt 0:0:44]} Qxb2 {[%emt 0:0:0]} 35. Bxb2 {[%emt 0:0:21]} Ne5 {[%emt 0:0:25]} 36. Be2 {[%emt 0:0:35]} Kf7 {[%emt 0:0:25]} 37. Bc3 {[%emt 0:0:33]} Nd7 {[%emt 0:0:31]} 38. Bd3 {[%emt 0:0:30]
} Nf6 {[%emt 0:0:42]} 39. Ke2 {[%emt 0:0:34]} Ng4 {[%emt 0:0:0]} 40. Be1 {[%emt 0:0:27]} Bd4 {[%emt 0:0:27]} 41. f3 {[%emt 0:0:32]} Ne5 {[%emt 0:0:21]} 42. f4 {[%emt 0:0:31]} Nd7 {[%emt 0:0:30]} 43. Bc2 {[%emt 0:0:0]} Nf6 {[%emt 0:0:35]} 44. Kf3 {[%emt 0:0:30]} Ke7 {[%emt 0:0:30]} 45. Ba4 {[%emt 0:0:26]} Kd8 {[%emt 0:0:27]} 46. Bc6 {[%emt 0:0:33]} Kc8 {[%emt 0:0:28]
} 47. Ke2 {[%emt 0:0:24]} Ba1 {[%emt 0:0:45]} 48. Kd3 {[%emt 0:0:0]} Kd8 {[%emt 0:0:23]} 49. Bb5 {[%emt 0:0:30]} Ne4 {[%emt 0:0:24]} 50. Bc6 {[%emt 0:0:31]} Bb2 {[%emt 0:0:32]} 51. Bb5 {[%emt 0:0:28]} Ba3 {[%emt 0:0:24]
} 52. Ke2 {[%emt 0:0:31]} Bc5 {[%emt 0:0:27]} 53. Bc6 {[%emt 0:0:0]} Bd4 {[%emt 0:0:24]} 54. Kd3 {[%emt 0:0:40]} Bf2 {[%emt 0:0:30]} 55. Bxf2 {[%emt 0:0:28]} Nxf2+ {[%emt 0:0:22]} 56. Ke3 {[%emt 0:0:30]} Ne4 {[%emt 0:0:26]
} 57. Ba4 {[%emt 0:0:34]} Nxg3 {[%emt 0:0:50]} 58. Bc2 {[%emt 0:0:22]
} Ke7 {[%emt 0:0:26]} 59. Bd3 {[%emt 0:0:24]} Kf7 {[%emt 0:0:0]} 60. Kf3 {[%emt 0:0:25]} Ne4 {[%emt 0:0:23]} 61. Bxe4 {[%emt 0:0:25]} fxe4+ {[%emt 0:0:23]} 62. Kxe4 {[%emt 0:0:20]} Kf6 {[%emt 0:0:25]} 63. Ke3 {[%emt 0:0:23]
} Ke7 {[%emt 0:0:36]} 64. Ke4 {[%emt 0:0:28]} Kf6 {[%emt 0:0:0]} 65. Ke3 {[%emt 0:0:21]} Ke7 {[%emt 0:0:34]} 66. Ke4 {[%emt 0:0:21]} Kf6 {[%emt 0:0:25]} 67. Ke3 {[%emt 0:0:22]} 1/2-1/2

[Event "RUS-ch Rapid Women 2021"]
[White "Nasybullina,Alfia"]
[Black "Potapova,Margarita"]
[Site "Sochi"]
[Round "11.4"]
[Annotator "NA"]
[Result "1/2-1/2"]
[Date "2021.10.13"]
[WhiteElo "2101"]
[BlackElo "2257"]
[PlyCount "73"]
[TimeControl "5400+30"]

1. d4 {[%emt 1:15:42]} Nf6 {[%emt 1:16:8]} 2. Nf3 {[%emt 0:0:22]} g6 {[%emt 0:0:27]
} 3. Bg5 {[%emt 0:0:23]} Bg7 {[%emt 0:0:30]} 4. Nbd2 {[%emt 0:0:0]} 0-0 {[%emt 0:0:54]} 5. e4 {[%emt 0:0:23]} d5 {[%emt 0:0:56]} 6. e5 {[%emt 0:0:29]
} Ne4 {[%emt 0:0:25]} 7. Be3 {[%emt 0:0:37]} c5 {[%emt 0:0:36]
} 8. c3 {[%emt 0:1:12]} cxd4 {[%emt 0:0:56]} 9. cxd4 {[%emt 0:0:31]} f6 {[%emt 0:0:35]
} 10. exf6 {[%emt 0:2:43]} exf6 {[%emt 0:0:38]} 11. Bd3 {[%emt 0:1:35]
} f5 {[%emt 0:0:32]} 12. Bf4 {[%emt 0:2:24]} Nc6 {[%emt 0:0:0]} 13. Be5 {[%emt 0:1:35]} Nxe5 {[%emt 0:2:40]} 14. Nxe5 {[%emt 0:0:56]} Qb6 {[%emt 0:0:45]} 15. 0-0 {[%emt 0:1:50]} Qxd4 {[%emt 0:3:9]} 16. Ndf3 {[%emt 0:0:22]
} Qb6 {[%emt 0:0:36]} 17. Rc1 {[%emt 0:1:11]} Be6 {[%emt 0:0:0]} 18. Bb1 {[%emt 0:1:15]} Qxb2 {[%emt 0:1:23]} 19. Nd3 {[%emt 0:0:21]} Qb6 {[%emt 0:1:31]} 20. Nf4 {[%emt 0:1:39]} Rfd8 {[%emt 0:1:31]} 21. Qb3 {[%emt 0:0:54]
} Qxb3 {[%emt 0:1:4]} 22. axb3 {[%emt 0:0:22]} Bf7 {[%emt 0:0:0]} 23. Rc7 {[%emt 0:0:30]} b6 {[%emt 0:1:23]} 24. Rfc1 {[%emt 0:0:53]} h6 {[%emt 0:1:9]} 25. h4 {[%emt 0:0:40]} d4 {[%emt 0:0:42]} 26. Bd3 {[%emt 0:0:56]
} Nc5 {[%emt 0:1:2]} 27. b4 {[%emt 0:1:17]} Ne4 {[%emt 0:0:0]} 28. R1c6 {[%emt 0:0:40]} Rd6 {[%emt 0:1:13]} 29. Bxe4 {[%emt 0:1:30]} Rdd8 {[%emt 0:0:43]} 30. Bd3 {[%emt 0:0:23]} a5 {[%emt 0:0:27]} 31. bxa5 {[%emt 0:0:31]
} bxa5 {[%emt 0:0:22]} 32. Nxg6 {[%emt 0:0:25]} a4 {[%emt 0:0:0]} 33. Ne7+ {[%emt 0:0:31]} Kf8 {[%emt 0:0:33]} 34. Ng6+ {[%emt 0:0:40]} Kg8 {[%emt 0:0:23]} 35. Ne7+ {[%emt 0:1:33]} Kf8 {[%emt 0:0:20]} 36. Ng6+ {[%emt 0:0:39]
} Kg8 {[%emt 0:0:21]} 37. Ne7+ {[%emt 0:0:27]} 1/2-1/2

[Event "RUS-ch Rapid Women 2021"]
[White "Vasilevich,Tatjana"]
[Black "Solozhenkina,Elizaveta"]
[Site "Sochi"]
[Round "11.5"]
[Annotator "NA RC"]
[Result "0-1"]
[Date "2021.10.13"]
[WhiteElo "2326"]
[BlackElo "2325"]
[PlyCount "103"]
[TimeControl "5400+30"]

1. d4 {[%emt 1:15:41]} Nf6 {[%emt 1:15:42]} 2. c4 {[%emt 0:0:21]} g6 {[%emt 0:0:0]} 3. Nc3 {[%emt 0:0:21]} d5 {[%emt 0:0:19]} 4. Nf3 {[%emt 0:0:25]} Bg7 {[%emt 0:0:22]} 5. e3 {[%emt 0:0:21]} 0-0 {[%emt 0:0:25]} 6. h3 {[%emt 0:0:0]} c5 {[%emt 0:1:5]} 7. dxc5 {[%emt 0:0:37]} Qa5 {[%emt 0:1:14]} 8. Bd2 {[%emt 0:2:7]
} Qxc5 {[%emt 0:0:57]} 9. b4 {[%emt 0:1:20]} Qc6 {[%emt 0:0:0]} 10. Nd4 {[%emt 0:1:8]} Qd7 {[%emt 0:0:59]} 11. cxd5 {[%emt 0:1:29]} Nxd5 {[%emt 0:0:24]} 12. Bb5 {[%emt 0:3:3]} Qd6 {[%emt 0:4:25]} 13. 0-0 {[%emt 0:5:53]
} a6 {[%emt 0:1:17]} 14. Ne4 {[%emt 0:1:0]} Qb6 {[%emt 0:0:0]} 15. Be2 {[%emt 0:0:50]} Rd8 {[%emt 0:1:2]} 16. Bf3 {[%emt 0:2:37]} e5 {[%emt 0:3:36]} 17. Nb3 {[%emt 0:0:59]} Nxb4 {[%emt 0:1:25]} 18. Rb1 {[%emt 0:0:37]
} N8c6 {[%emt 0:1:3]} 19. a3 {[%emt 0:0:33]} Nd5 {[%emt 0:0:0]} 20. Na5 {[%emt 0:0:30]} Qc7 {[%emt 0:0:30]} 21. Qc2 {[%emt 0:0:28]} f5 {[%emt 0:1:6]} 22. Ng3 {[%emt 0:0:32]} e4 {[%emt 0:0:58]} 23. Be2 {[%emt 0:0:0]} Nd4 {[%emt 0:0:52]} 24. Qxc7 {[%emt 0:0:39]} Nxe2+ {[%emt 0:0:22]} 25. Nxe2 {[%emt 0:0:21]} Nxc7 {[%emt 0:0:20]} 26. Bc3 {[%emt 0:0:35]} Bxc3 {[%emt 0:0:43]
} 27. Nxc3 {[%emt 0:0:21]} b5 {[%emt 0:0:25]} 28. Rfc1 {[%emt 0:0:31]
} Ne6 {[%emt 0:1:26]} 29. a4 {[%emt 0:0:27]} bxa4 {[%emt 0:0:0]} 30. Nxa4 {[%emt 0:0:37]} Bd7 {[%emt 0:0:25]} 31. Nb6 {[%emt 0:0:40]} Rab8 {[%emt 0:0:22]} 32. Nxd7 {[%emt 0:0:32]} Rxb1 {[%emt 0:0:21]} 33. Nf6+ {[%emt 0:0:26]} Kf7 {[%emt 0:0:21]} 34. Rxb1 {[%emt 0:0:23]} Kxf6 {[%emt 0:0:0]} 35. Rb6 {[%emt 0:0:26]} Ra8 {[%emt 0:1:15]} 36. Kf1 {[%emt 0:0:34]} Ke5 {[%emt 0:0:36]} 37. Rb7 {[%emt 0:0:32]} h5 {[%emt 0:0:27]} 38. Nc4+ {[%emt 0:0:23]
} Kf6 {[%emt 0:0:34]} 39. Nb6 {[%emt 0:0:36]} Rd8 {[%emt 0:0:0]} 40. h4 {[%emt 0:0:33]} Nc5 {[%emt 0:0:42]} 41. Rc7 {[%emt 0:0:22]} Nd3 {[%emt 0:0:28]} 42. Ra7 {[%emt 0:0:34]} Rd6 {[%emt 0:0:37]} 43. Nd7+ {[%emt 0:0:25]
} Ke6 {[%emt 0:0:25]} 44. Nf8+ {[%emt 0:0:43]} Kd5 {[%emt 0:0:0]} 45. f3 {[%emt 0:0:32]} Rb6 {[%emt 0:0:45]} 46. Rd7+ {[%emt 0:0:26]} Kc5 {[%emt 0:0:20]} 47. fxe4 {[%emt 0:0:24]} fxe4 {[%emt 0:0:22]} 48. Re7 {[%emt 0:0:28]
} Rf6+ {[%emt 0:0:22]} 49. Ke2 {[%emt 0:0:32]} Rf2+ {[%emt 0:0:0]} 50. Kd1 {[%emt 0:0:22]} Rxf8 {[%emt 0:0:23]} 51. Rxe4 {[%emt 0:0:21]
} Nf2+ {[%emt 0:0:20]} 52. Ke1 {[%emt 0:0:22]} 0-1

[Event "RUS-ch Rapid Women 2021"]
[White "Nazarova,Anastasia"]
[Black "Murashova,Ekaterina"]
[Site "Sochi"]
[Round "11.6"]
[Annotator "NA RC"]
[Result "1/2-1/2"]
[Date "2021.10.13"]
[WhiteElo "2216"]
[BlackElo "2213"]
[PlyCount "114"]
[TimeControl "5400+30"]

1. e4 {[%emt 1:15:41]} c5 {[%emt 1:15:41]} 2. Nf3 {[%emt 0:0:21]} g6 {[%emt 0:0:0]} 3. d4 {[%emt 0:0:25]} cxd4 {[%emt 0:0:22]} 4. Nxd4 {[%emt 0:0:33]} Bg7 {[%emt 0:0:25]} 5. c4 {[%emt 0:0:25]} Nc6 {[%emt 0:0:24]} 6. Be3 {[%emt 0:0:24]
} d6 {[%emt 0:0:58]} 7. Nc3 {[%emt 0:0:23]} Nf6 {[%emt 0:1:9]
} 8. Be2 {[%emt 0:0:21]} 0-0 {[%emt 0:0:22]} 9. 0-0 {[%emt 0:0:23]} Bd7 {[%emt 0:0:23]
} 10. Qd2 {[%emt 0:1:2]} Nxd4 {[%emt 0:0:22]} 11. Bxd4 {[%emt 0:0:21]
} Bc6 {[%emt 0:0:21]} 12. f3 {[%emt 0:0:22]} a5 {[%emt 0:0:22]
} 13. b3 {[%emt 0:1:44]} Nd7 {[%emt 0:0:21]} 14. Be3 {[%emt 0:0:21]} Nc5 {[%emt 0:0:29]
} 15. Rac1 {[%emt 0:0:27]} e6 {[%emt 0:0:44]} 16. Rfd1 {[%emt 0:0:26]
} Be5 {[%emt 0:0:22]} 17. Bf1 {[%emt 0:0:28]} Qe7 {[%emt 0:0:0]} 18. Qe1 {[%emt 0:3:17]} Rad8 {[%emt 0:2:8]} 19. Ne2 {[%emt 0:3:51]} b6 {[%emt 0:0:52]} 20. Nd4 {[%emt 0:0:49]} Ba8 {[%emt 0:1:0]} 21. Nb5 {[%emt 0:1:56]
} Bc6 {[%emt 0:0:48]} 22. Nd4 {[%emt 0:0:30]} Ba8 {[%emt 0:0:0]} 23. Nb5 {[%emt 0:0:21]} Bg7 {[%emt 0:2:8]} 24. Bf2 {[%emt 0:2:41]} Rd7 {[%emt 0:3:59]} 25. Bh4 {[%emt 0:1:7]} g5 {[%emt 0:0:48]} 26. Bg3 {[%emt 0:0:0]} Rfd8 {[%emt 0:0:43]} 27. Rc2 {[%emt 0:1:12]} Be5 {[%emt 0:0:45]} 28. Rcd2 {[%emt 0:1:29]} Bc6 {[%emt 0:2:31]} 29. Nd4 {[%emt 0:0:38]} Bb7 {[%emt 0:0:24]
} 30. h4 {[%emt 0:1:2]} h6 {[%emt 0:0:29]} 31. Nb5 {[%emt 0:0:0]} Kf8 {[%emt 0:1:53]} 32. hxg5 {[%emt 0:0:56]} hxg5 {[%emt 0:0:21]} 33. Nd4 {[%emt 0:1:11]} Qf6 {[%emt 0:0:32]} 34. Nb5 {[%emt 0:0:26]} Ke7 {[%emt 0:1:8]
} 35. Bxe5 {[%emt 0:0:37]} dxe5 {[%emt 0:0:34]} 36. Rxd7+ {[%emt 0:0:22]
} Rxd7 {[%emt 0:0:21]} 37. Rxd7+ {[%emt 0:0:22]} Nxd7 {[%emt 0:0:0]} 38. Qd2 {[%emt 0:0:24]} Ba6 {[%emt 0:1:1]} 39. Qd6+ {[%emt 0:0:28]} Kd8 {[%emt 0:0:19]} 40. Qc7+ {[%emt 0:0:29]} Ke7 {[%emt 0:0:29]} 41. Na7 {[%emt 0:0:39]
} Ke8 {[%emt 0:0:37]} 42. Nc6 {[%emt 0:0:31]} g4 {[%emt 0:0:0]} 43. Qa7 {[%emt 0:0:31]} Kf8 {[%emt 0:0:56]} 44. Qxa6 {[%emt 0:0:33]} Kg7 {[%emt 0:0:25]} 45. fxg4 {[%emt 0:0:40]} Qf4 {[%emt 0:0:21]} 46. Qb7 {[%emt 0:0:34]
} Qe3+ {[%emt 0:0:30]} 47. Kh1 {[%emt 0:0:25]} Qh6+ {[%emt 0:0:0]} 48. Kg1 {[%emt 0:0:22]} Qe3+ {[%emt 0:0:20]} 49. Kh2 {[%emt 0:0:22]} Nf6 {[%emt 0:0:39]} 50. Be2 {[%emt 0:0:45]} Nxe4 {[%emt 0:1:7]} 51. Bf3 {[%emt 0:0:31]
} Qf4+ {[%emt 0:0:23]} 52. Kg1 {[%emt 0:0:20]} Qe3+ {[%emt 0:0:0]} 53. Kh2 {[%emt 0:0:22]} Qh6+ {[%emt 0:0:32]} 54. Kg1 {[%emt 0:0:24]} Qc1+ {[%emt 0:0:23]} 55. Kh2 {[%emt 0:0:24]} Qf4+ {[%emt 0:0:24]} 56. Kg1 {[%emt 0:0:21]
} Qe3+ {[%emt 0:0:44]} 57. Kh2 {[%emt 0:0:20]} Qe2 {[%emt 0:0:0]} 1/2-1/2